fUSD/lending_fUSD_20260129
["ID","MTS","AMOUNT","RATE_DAILY","PERIOD"]
[403972362,1769700713689,-10000.01,0.00013717,2]
[403972363,1769700714034,-10000.01,0.00013717,2]
[403972364,1769700721845,-10000.01,0.00013617,2]
[403972365,1769700721992,-10000.01,0.00013617,2]
[403972366,1769700722143,-3609.51336607,0.00013617,2]
[403972367,1769700722174,-2780.98326786,0.00013617,2]
[403972368,1769700728188,2708.377372,7.945e-05,2]
[403972372,1769700731879,300.0,0.000137,5]
[403972376,1769700738260,494.76,0.000137,2]
[403972377,1769700738331,700.0,0.000138,5]
[403972380,1769700743595,1000.0,0.000139,5]
[403972404,1769700802242,-500.0,0.00013709,2]
[403972406,1769700852453,4120.1371,0.00013617,2]
[403972408,1769700856080,907.459317,0.00013707,2]
[403972411,1769700865520,2500.0,0.00013617,2]
[403972413,1769700873278,1472.413583,0.00013617,2]
[403972414,1769700873308,8867.63226289,0.00013617,2]
[403972452,1769700940094,375.8377,0.00013617,2]
[403972454,1769700942197,418.84763816,0.00013617,2]
[403972460,1769700970444,176.93628352,0.00013616,2]
[403972462,1769700977067,160.75611543,0.00013617,2]
[403972463,1769700977096,16.18016809,0.00013617,2]
[403972465,1769700982856,1879.9549,0.00013617,2]
[403972466,1769700986580,166.46,0.00011285,2]
[403972468,1769700987623,166.46,0.00012696,2]
[403972469,1769700996208,1834.93539732,0.00013617,2]
[403972485,1769701022481,2500.0,0.00013617,2]
[403972488,1769701025065,500.0,0.00013709,2]
[403972496,1769701037373,200.0,0.00013709,2]
[403972500,1769701061707,500.0,0.00013709,2]
[403972501,1769701062725,500.0,0.00013709,2]
[403972502,1769701063493,500.0,0.00013709,2]
[403972503,1769701063712,500.0,0.00013709,2]
[403972505,1769701072088,500.0,0.00013709,2]
[403972506,1769701074784,500.0,0.00013709,2]
[403972507,1769701075195,500.0,0.00013709,2]
[403972508,1769701075826,500.0,0.00013709,2]
[403972509,1769701076465,500.0,0.00013709,2]
[403972510,1769701077075,500.0,0.00013709,2]
[403972512,1769701078563,500.0,0.00013709,2]
[403972518,1769701088411,4500.01,7.945e-05,2]
[403972519,1769701088443,3695.574682,7.945e-05,2]
[403972547,1769701145894,6304.435318,0.00013617,2]
[403972548,1769701145923,10000.01,0.00013617,2]
[403972549,1769701145950,10000.01,0.00013617,2]
[403972550,1769701145978,10000.01,0.00013617,2]
[403972551,1769701146005,2687.203482,0.00013617,2]
[403972552,1769701146599,203.11836362,0.00013699,2]
[403972554,1769701151946,2500.0,0.00013617,2]
[403972562,1769701183726,161.0,0.00013577,2]
[403972572,1769701210641,315.68033786,0.00013707,2]
[403972585,1769701228162,9523.32966214,0.00013617,2]
[403972586,1769701228200,10000.01,0.00013617,2]
[403972587,1769701228236,4415.84780138,0.00013617,2]
[403972603,1769701262501,10000.01,0.00013617,2]
[403972604,1769701262532,1406.80772795,0.00013617,2]
[403972606,1769701263516,8593.20227205,0.00013616,2]
[403972607,1769701263555,10000.01,0.00013616,2]
[403972608,1769701263594,10000.01,0.00013616,2]
[403972609,1769701263632,1000000.0,0.00013616,2]
[403972610,1769701263670,1371406.77772795,0.00013616,2]
[403972615,1769701297432,4180.5513,0.00013617,2]
[403972616,1769701303349,2500.0,0.00013617,2]
[403972618,1769701325634,200.0,0.00013709,2]
[403972621,1769701331411,151.0,0.00013709,2]
[403972622,1769701331954,151.0,0.00013709,2]
[403972623,1769701332671,151.0,0.00013709,2]
[403972624,1769701333833,151.0,0.00013709,2]
[403972625,1769701333996,151.0,0.00013709,2]
[403972626,1769701335117,151.0,0.00013709,2]
[403972627,1769701335573,151.0,0.00013709,2]
[403972628,1769701336222,151.0,0.00013709,2]
[403972629,1769701336930,151.0,0.00013709,2]
[403972630,1769701337438,151.0,0.00013709,2]
[403972631,1769701338048,151.0,0.00013709,2]
[403972633,1769701346972,1458.4587,0.00013617,2]
[403972634,1769701347000,4487.9077,0.00013617,2]
[403972639,1769701359095,500.0,0.00013709,2]
[403972640,1769701359666,500.0,0.00013709,2]
[403972641,1769701360295,500.0,0.00013709,2]
[403972642,1769701360918,500.0,0.00013709,2]
[403972644,1769701361557,500.0,0.00013709,2]
[403972645,1769701362169,500.0,0.00013709,2]
[403972647,1769701362804,500.0,0.00013709,2]
[403972648,1769701363591,500.0,0.00013709,2]
[403972650,1769701364232,500.0,0.00013709,2]
[403972651,1769701364869,500.0,0.00013709,2]
[403972652,1769701367406,500.0,0.00013709,2]
[403972656,1769701392540,12.1023,0.00013614,2]
[403972657,1769701392569,487.8977,0.00013614,2]
[403972659,1769701405872,1500.0,0.00013602,2]
[403972660,1769701408764,195.17,0.000137,2]
[403972661,1769701417634,7816.9423,0.00013616,2]
[403972662,1769701417670,10000.01,0.00013616,2]
[403972663,1769701417716,10000.01,0.00013616,2]
[403972664,1769701417753,10000.01,0.00013616,2]
[403972665,1769701417790,10000.01,0.00013616,2]
[403972666,1769701417827,10000.01,0.00013616,2]
[403972668,1769701417865,10000.01,0.00013616,2]
[403972669,1769701417901,628593.22227205,0.00013616,2]
[403972671,1769701441778,300.0,0.00013615,2]
[403972678,1769701459950,283.1412105,0.00013613,2]
[403973275,1769701484638,9416.8687895,0.00013583,2]
[403973276,1769701484668,8549.8412105,0.00013583,2]
[403973619,1769701501415,200.0,0.00013615,2]
[403973620,1769701501567,1200.0,0.00013615,2]
[403973621,1769701501647,50.1687895,0.00013615,2]
[403973622,1769701501679,249.8312105,0.00013615,2]
[403973623,1769701502659,300.0,0.00013615,2]
[403973624,1769701502865,150.0,0.00013615,2]
[403973628,1769701531958,421.2974,0.00013614,2]
[403973629,1769701557901,5532.0,0.000145,5]
[403973630,1769701562615,300.0,0.00013615,2]
[403973635,1769701593645,166.66,0.00012925,2]
[403973636,1769701593958,166.66,0.00013197,2]
[403973637,1769701594304,166.66,0.00013469,2]
[403973648,1769701603287,165.6567796,0.00013517,2]
[403973650,1769701621732,300.0,0.00013615,2]
[403973657,1769701634847,200.0,0.000137,5]
[403973658,1769701636838,500.0,0.000138,5]
[403973660,1769701638905,700.0,0.000139,5]
[403973671,1769701657958,7613.2446099,0.00013516,2]
[403973672,1769701657989,5235.23448387,0.00013516,2]
[403973679,1769701677825,1201.23,0.0001358,2]
[403973681,1769701681842,300.0,0.00013615,2]
[403973682,1769701682545,300.0,0.00013615,2]
[403973683,1769701682860,150.0,0.00013615,2]
[403973685,1769701702876,1200.0,0.00013615,2]
[403973690,1769701742638,300.0,0.00013615,2]
[403973692,1769701747021,1313.54551613,0.00013516,2]
[403973693,1769701747051,10000.01,0.00013516,2]
[403973694,1769701747083,10000.01,0.00013516,2]
[403973695,1769701747114,400.65344463,0.00013516,2]
[403973698,1769701759040,2500.0,0.00013516,2]
[403973707,1769701801352,300.0,0.00013615,2]
[403973708,1769701802115,1200.0,0.00013615,2]
[403973711,1769701812091,210.45355858,0.00013606,2]
[403973725,1769701831586,-424.0,0.00013616,2]
[403973727,1769701831598,-2125.0,0.00013616,2]
[403973729,1769701831610,-1372.97586918,0.00013616,2]
[403973731,1769701831622,-458.44747329,0.00013616,2]
[403973733,1769701831657,-22511.88086916,0.00013616,2]
[403973734,1769701831737,-743.753,0.00013616,2]
[403973735,1769701831749,-1335.22313328,0.00013616,2]
[403973736,1769701831761,-1363.74509992,0.00013616,2]
[403973737,1769701831772,-4734.15578863,0.00013616,2]
[403973738,1769701831784,-450.72894432,0.00013616,2]
[403973739,1769701831819,-423.75,0.00013616,2]
[403973740,1769701831831,-18292.11207238,0.00013616,2]
[403973741,1769701831939,-574.6,0.00013616,2]
[403973742,1769701831951,-689.16136204,0.00013616,2]
[403974001,1769701834643,500.0,0.00013547,3]
[403974161,1769701838212,-85000.00000001,0.00013616,2]
[403974162,1769701838225,-16933.60000001,0.00013616,2]
[403974163,1769701838314,-20809.26981631,0.00013616,2]
[403974164,1769701838326,-5523.718,0.00013616,2]
[403974165,1769701838339,-17003.80000001,0.00013616,2]
[403974166,1769701838351,-2473.13499175,0.00013616,2]
[403974249,1769701839573,-406.34379904,0.00013616,2]
[403974252,1769701839598,-994.0,0.00013616,2]
[403974257,1769701839634,-635.01893693,0.00013616,2]
[403974259,1769701839645,-1179.18127839,0.00013616,2]
[403974261,1769701839658,-3302.55319815,0.00013616,2]
[403974264,1769701839669,-908.55333528,0.00013616,2]
[403974266,1769701839681,-14515.15909837,0.00013616,2]
[403974268,1769701839696,-254.22874181,0.00013616,2]
[403974271,1769701839709,-18280.2667488,0.00013616,2]
[403974273,1769701839720,-352.39999993,0.00013616,2]
[403974278,1769701839752,-936.67,0.00013616,2]
[403974332,1769701840371,-343.11,0.00013616,2]
[403974334,1769701840384,-850.0,0.00013616,2]
[403974336,1769701840402,-4250.0,0.00013616,2]
[403974340,1769701840440,-1553.73338953,0.00013616,2]
[403974342,1769701840452,-586.80897448,0.00013616,2]
[403974347,1769701840485,-1000.04798855,0.00013616,2]
[403974349,1769701840497,-845.05,0.00013616,2]
[403974353,1769701840528,-1449153.5935184,0.00013616,2]
[403974355,1769701840538,-262.0,0.00013616,2]
[403974357,1769701840547,-250.0,0.00013616,2]
[403974359,1769701840556,-1731.28,0.00013661,2]
[403974361,1769701840566,-500.0,0.00013698,2]
[403974363,1769701840575,-417.73,0.00013698,2]
[403974365,1769701840585,-4106.83111828,0.00013706,2]
[403974367,1769701840594,-500.0,0.00013716,2]
[403974369,1769701840603,-500.0,0.00013716,2]
[403974371,1769701840613,-500.0,0.00013716,2]
[403974373,1769701840622,-500.0,0.00013716,2]
[403974375,1769701840632,-500.0,0.00013716,2]
[403974377,1769701840641,-183.93928973,0.00013716,2]
[403974379,1769701840650,-500.0,0.00013716,2]
[403974381,1769701840659,-500.0,0.00013716,2]
[403974383,1769701840668,-500.0,0.00013716,2]
[403974385,1769701840678,-500.0,0.00013716,2]
[403974387,1769701840690,-500.0,0.00013716,2]
[403974389,1769701840700,-500.0,0.00013716,2]
[403974391,1769701840710,-500.0,0.00013716,2]
[403974393,1769701840719,-500.0,0.00013716,2]
[403974395,1769701840728,-500.0,0.00013716,2]
[403974398,1769701840737,-500.0,0.00013716,2]
[403974400,1769701840747,-500.0,0.00013716,2]
[403974403,1769701840757,-500.0,0.00013716,2]
[403974405,1769701840767,-500.0,0.00013716,2]
[403974407,1769701840776,-500.0,0.00013716,2]
[403974409,1769701840786,-500.0,0.00013716,2]
[403974411,1769701840795,-500.0,0.00013716,2]
[403974413,1769701840804,-500.0,0.00013716,2]
[403974415,1769701840814,-500.0,0.00013716,2]
[403974417,1769701840823,-500.0,0.00013716,2]
[403974419,1769701840832,-500.0,0.00013716,2]
[403974421,1769701840841,-500.0,0.00013716,2]
[403974423,1769701840850,-500.0,0.00013716,2]
[403974425,1769701840859,-500.0,0.00013716,2]
[403974427,1769701840868,-500.0,0.00013716,2]
[403974429,1769701840877,-500.0,0.00013716,2]
[403974431,1769701840887,-500.0,0.00013716,2]
[403974433,1769701840896,-500.0,0.00013716,2]
[403974435,1769701840905,-500.0,0.00013716,2]
[403974437,1769701840914,-500.0,0.00013716,2]
[403974439,1769701840923,-500.0,0.00013716,2]
[403974441,1769701840934,-500.0,0.00013716,2]
[403974442,1769701840943,-229.06763455,0.00013716,2]
[403974444,1769701840953,-500.0,0.00013716,2]
[403974446,1769701840962,-500.0,0.00013716,2]
[403974448,1769701840971,-500.0,0.00013716,2]
[403974450,1769701840980,-500.0,0.00013716,2]
[403974452,1769701840990,-500.0,0.00013716,2]
[403974454,1769701840999,-500.0,0.00013716,2]
[403974457,1769701841009,-500.0,0.00013716,2]
[403974459,1769701841018,-500.0,0.00013716,2]
[403974461,1769701841028,-500.0,0.00013716,2]
[403974463,1769701841037,-551.43232499,0.00013716,2]
[403974464,1769701841046,-500.0,0.00013716,2]
[403974467,1769701841055,-500.0,0.00013716,2]
[403974469,1769701841065,-500.0,0.00013716,2]
[403974471,1769701841075,-500.0,0.00013716,2]
[403974473,1769701841085,-500.0,0.00013716,2]
[403974475,1769701841094,-500.0,0.00013716,2]
[403974477,1769701841104,-520.23286267,0.00013716,2]
[403974479,1769701841113,-500.0,0.00013716,2]
[403974481,1769701841122,-500.0,0.00013716,2]
[403974483,1769701841132,-500.0,0.00013716,2]
[403974485,1769701841142,-500.0,0.00013716,2]
[403974487,1769701841151,-500.0,0.00013716,2]
[403974489,1769701841160,-500.0,0.00013716,2]
[403974491,1769701841169,-500.0,0.00013716,2]
[403974493,1769701841179,-500.0,0.00013716,2]
[403974495,1769701841191,-299.80188279,0.00013716,2]
[403974497,1769701841200,-1583.09,0.00013716,2]
[403974499,1769701841210,-1000.0,0.00013717,2]
[403974501,1769701841219,-17581.2565,0.00013717,2]
[403974503,1769701841228,-166.66,0.00013741,2]
[403974505,1769701841237,-423.91865355,0.00013816,2]
[403974507,1769701841247,-500.0,0.00013816,2]
[403974509,1769701841256,-500.0,0.00013816,2]
[403974511,1769701841269,-500.0,0.00013816,2]
[403974513,1769701841279,-500.0,0.00013816,2]
[403974515,1769701841289,-500.0,0.00013816,2]
[403974517,1769701841299,-500.0,0.00013816,2]
[403974519,1769701841311,-500.0,0.00013816,2]
[403974521,1769701841320,-500.0,0.00013816,2]
[403974523,1769701841329,-500.0,0.00013816,2]
[403974525,1769701841339,-500.0,0.00013816,2]
[403974527,1769701841348,-359.96661697,0.00013816,2]
[403974528,1769701841357,-500.0,0.00013816,2]
[403974530,1769701841367,-500.0,0.00013816,2]
[403974531,1769701841376,-500.0,0.00013816,2]
[403974533,1769701841386,-500.0,0.00013816,2]
[403974535,1769701841395,-500.0,0.00013816,2]
[403974537,1769701841405,-500.0,0.00013816,2]
[403974539,1769701841415,-554.90775112,0.00013816,2]
[403974540,1769701841425,-500.0,0.00013816,2]
[403974542,1769701841435,-500.0,0.00013816,2]
[403974544,1769701841444,-500.0,0.00013816,2]
[403974545,1769701841454,-500.0,0.00013816,2]
[403974547,1769701841463,-500.0,0.00013816,2]
[403974549,1769701841473,-500.0,0.00013816,2]
[403974550,1769701841482,-500.0,0.00013816,2]
[403974552,1769701841492,-500.0,0.00013816,2]
[403974554,1769701841501,-500.0,0.00013816,2]
[403974555,1769701841510,-500.0,0.00013816,2]
[403974557,1769701841520,-500.0,0.00013816,2]
[403974559,1769701841529,-500.0,0.00013816,2]
[403974561,1769701841539,-500.0,0.00013816,2]
[403974562,1769701841548,-500.0,0.00013816,2]
[403974564,1769701841557,-500.0,0.00013816,2]
[403974566,1769701841566,-500.0,0.00013816,2]
[403974567,1769701841575,-394.32,0.00013816,2]
[403974569,1769701841585,-500.0,0.00013957,2]
[403974571,1769701841594,-500.0,0.00013957,2]
[403974573,1769701841604,-500.0,0.00013957,2]
[403974575,1769701841614,-500.0,0.00013957,2]
[403974576,1769701841623,-500.0,0.00013957,2]
[403974578,1769701841633,-500.0,0.00013957,2]
[403974580,1769701841642,-500.0,0.00013957,2]
[403974582,1769701841651,-500.0,0.00013957,2]
[403974583,1769701841660,-1583.09,0.0001399,2]
[403974585,1769701841670,-12848.47909371,0.00014003,2]
[403974587,1769701841679,-21714.21896069,0.00014003,2]
[403974589,1769701841697,-166.66,0.00014013,2]
[403974591,1769701841709,-200.0,0.00014035,2]
[403974593,1769701841720,-3240.0,0.00014082,2]
[403974595,1769701841731,-152.99430487,0.00014084,2]
[403974597,1769701841741,-166.46,0.00014107,2]
[403974598,1769701841751,-150.0,0.00014112,2]
[403974600,1769701841761,-1583.09,0.00014264,2]
[403974602,1769701841771,-166.66,0.00014285,2]
[403974604,1769701841781,-643.55859869,0.00014339,2]
[403974605,1769701841791,-369.6395236,0.00014479,2]
[403974607,1769701841801,-12848.47909371,0.0001449,2]
[403974609,1769701841811,-21714.21896069,0.0001449,2]
[403974611,1769701841821,-647.66859598,0.00014499,2]
[403974613,1769701841831,-1583.09,0.00014538,2]
[403974615,1769701841841,-418.84763814,0.00014688,2]
[403974617,1769701841851,-255.0,0.00014731,2]
[403974618,1769701841861,-1583.09,0.00014812,2]
[403974620,1769701841870,-151.0,0.0001482,2]
[403974622,1769701841879,-151.0,0.00014823,2]
[403974635,1769701842033,-151.0,0.00014823,2]
[403974637,1769701842043,-151.0,0.00014823,2]
[403974639,1769701842053,-151.0,0.00014823,2]
[403974641,1769701842062,-151.0,0.00014823,2]
[403974643,1769701842072,-151.0,0.00014823,2]
[403974644,1769701842082,-151.0,0.00014823,2]
[403974646,1769701842091,-420.0,0.00014922,2]
[403974648,1769701842100,-1680.0,0.00014976,2]
[403974650,1769701842109,-12848.47909371,0.00014977,2]
[403974651,1769701842119,-21714.21896069,0.00014977,2]
[403974653,1769701842128,-600.0,0.00014977,2]
[403974655,1769701842137,-600.0,0.00014977,2]
[403974657,1769701842146,-195.0,0.00014977,2]
[403974659,1769701842156,-250.0,0.00014977,2]
[403974661,1769701842165,-195.0,0.00014977,2]
[403974663,1769701842175,-250.0,0.00014977,2]
[403974665,1769701842189,-195.0,0.00014977,2]
[403974667,1769701842198,-300.0,0.00014977,2]
[403974669,1769701842208,-2500.0,0.00014977,2]
[403974671,1769701842218,-991.3248506,0.00014977,2]
[403974673,1769701842228,-195.0,0.00014977,2]
[403974675,1769701842237,-300.0,0.00014977,2]
[403974677,1769701842247,-558.58231824,0.00015044,2]
[403974679,1769701842256,-1583.09,0.00015086,2]
[403974681,1769701842267,-10837.99229757,0.00015206,2]
[403974683,1769701842278,-1201.23,0.00015278,2]
[403974685,1769701842287,-1583.09,0.0001536,2]
[403974687,1769701842296,-12848.47909371,0.00015464,2]
[403974689,1769701842306,-21714.21896069,0.00015464,2]
[403974691,1769701842315,-166.46,0.00015518,2]
[403974693,1769701842324,-240.72,0.00015615,7]
[403974694,1769701842334,-1826.37644367,0.0001562,2]
[403974696,1769701842343,-1583.09,0.00015634,2]
[403974699,1769701842353,-521.0,0.00015665,2]
[403974700,1769701842363,-154.30496973,0.00015665,2]
[403974702,1769701842373,-500.0,0.00015665,2]
[403974703,1769701842382,-150.0,0.00015665,2]
[403974704,1769701842391,-150.0,0.00015665,2]
[403974705,1769701842401,-150.0,0.00015665,2]
[403974706,1769701842410,-500.0,0.00015665,2]
[403974707,1769701842420,-500.0,0.00015665,2]
[403974708,1769701842429,-150.0,0.00015665,2]
[403974710,1769701842441,-150.0,0.00015665,2]
[403974712,1769701842450,-150.0,0.00015665,2]
[403974713,1769701842460,-19119.50308118,0.00015706,2]
[403974714,1769701842470,-28601.63314708,0.00015706,2]
[403974715,1769701842480,-38699.0208,0.00015706,2]
[403974717,1769701842490,-521.0,0.0001572,2]
[403974718,1769701842500,-500.0,0.0001572,2]
[403974720,1769701842511,-150.0,0.0001572,2]
[403974722,1769701842520,-225.67688444,0.0001572,2]
[403974724,1769701842530,-150.0,0.0001572,2]
[403974726,1769701842541,-500.0,0.0001572,2]
[403974727,1769701842551,-500.0,0.0001572,2]
[403974728,1769701842561,-150.0,0.0001572,2]
[403974729,1769701842570,-150.0,0.0001572,2]
[403974730,1769701842579,-418.84763814,0.00015759,2]
[403974731,1769701842592,-521.0,0.00015775,2]
[403974732,1769701842602,-500.0,0.00015775,2]
[403974733,1769701842612,-150.0,0.00015775,2]
[403974734,1769701842622,-200.0,0.00015775,2]
[403974735,1769701842631,-500.0,0.00015775,2]
[403974736,1769701842640,-500.0,0.00015775,2]
[403974737,1769701842650,-150.0,0.00015775,2]
[403974738,1769701842660,-521.0,0.00015829,2]
[403974739,1769701842670,-500.0,0.00015829,2]
[403974740,1769701842679,-150.0,0.00015829,2]
[403974741,1769701842691,-150.0,0.00015829,2]
[403974742,1769701842701,-521.0,0.00015884,2]
[403974743,1769701842710,-500.0,0.00015884,2]
[403974744,1769701842720,-150.0,0.00015884,2]
[403974745,1769701842729,-250.0,0.00015884,2]
[403974746,1769701842738,-1583.09,0.00015908,2]
[403974747,1769701842748,-521.0,0.00015939,2]
[403974748,1769701842757,-500.0,0.00015939,2]
[403974749,1769701842766,-250.0,0.00015939,2]
[403974750,1769701842775,-433.0,0.00015943,2]
[403974751,1769701842784,-12848.47909371,0.00015952,2]
[403974752,1769701842793,-21714.21896069,0.00015952,2]
[403974753,1769701842803,-500.0,0.00015973,2]
[403974754,1769701842812,-500.0,0.00015973,2]
[403974755,1769701842821,-502.95752889,0.00015973,2]
[403974756,1769701842831,-500.0,0.00015973,2]
[403974757,1769701842840,-500.0,0.00015973,2]
[403974758,1769701842850,-500.0,0.00015973,2]
[403974759,1769701842860,-500.0,0.00015973,2]
[403974760,1769701842869,-500.0,0.00015973,2]
[403974761,1769701842878,-521.0,0.00015994,2]
[403974762,1769701842888,-500.0,0.00015994,2]
[403974763,1769701842898,-521.0,0.00016049,2]
[403974764,1769701842908,-500.0,0.00016049,2]
[403974765,1769701842918,-1826.37644367,0.00016076,2]
[403974766,1769701842928,-521.0,0.00016103,2]
[403974767,1769701842940,-500.0,0.00016103,2]
[403974768,1769701842950,-9999.99,0.00016116,2]
[403974769,1769701842960,-521.0,0.00016158,2]
[403974770,1769701842969,-500.0,0.00016158,2]
[403974771,1769701842979,-1583.09,0.00016182,2]
[403974772,1769701842988,-521.0,0.00016213,2]
[403974773,1769701842998,-500.0,0.00016213,2]
[403974774,1769701843008,-521.0,0.00016268,2]
[403974775,1769701843018,-500.0,0.00016268,2]
[403974776,1769701843028,-521.0,0.00016323,2]
[403974777,1769701843037,-500.0,0.00016323,2]
[403974778,1769701843047,-587.0,0.00016354,2]
[403974779,1769701843057,-521.0,0.00016377,2]
[403974780,1769701843067,-500.0,0.00016377,2]
[403974781,1769701843076,-521.0,0.00016432,2]
[403974782,1769701843086,-173.99894081,0.00016432,2]
[403974783,1769701843096,-500.0,0.00016438,2]
[403974784,1769701843105,-477.5181344,0.00016438,2]
[403974785,1769701843115,-12848.47909371,0.00016439,2]
[403974786,1769701843124,-21714.21896069,0.00016439,2]
[403974787,1769701843134,-165.31,0.0001644,2]
[403974788,1769701843144,-165.31,0.0001644,2]
[403974789,1769701843154,-165.31,0.0001644,2]
[403974790,1769701843163,-1583.09,0.00016456,2]
[403974791,1769701843173,-2351.0,0.00016474,2]
[403974792,1769701843182,-521.0,0.00016487,2]
[403974793,1769701843193,-1000.0,0.00016521,2]
[403974794,1769701843202,-1000.0,0.00016521,2]
[403974795,1769701843211,-1000.0,0.00016521,2]
[403974796,1769701843221,-1000.0,0.00016521,2]
[403974797,1769701843231,-1000.0,0.00016521,2]
[403974798,1769701843240,-1000.0,0.00016521,2]
[403974799,1769701843250,-1000.0,0.00016521,2]
[403974800,1769701843259,-1826.37644367,0.00016532,2]
[403974801,1769701843269,-521.0,0.00016542,2]
[403974802,1769701843280,-521.0,0.00016597,2]
[403974803,1769701843290,-521.0,0.00016651,2]
[403974804,1769701843300,-521.0,0.00016706,2]
[403974805,1769701843310,-5178.0,0.00016708,2]
[403974806,1769701843320,-1583.20967812,0.0001673,2]
[403974807,1769701843330,-521.0,0.00016761,2]
[403974808,1769701843339,-521.0,0.00016816,2]
[403974809,1769701843348,-418.84763814,0.00016829,2]
[403974810,1769701843358,-255.5,0.00016849,3]
[403974812,1769701843368,-521.0,0.0001687,2]
[403974813,1769701843377,-174.61919141,0.00016899,2]
[403974815,1769701843387,-500.0,0.00016899,2]
[403974816,1769701843395,-578.20924308,0.00016899,2]
[403974817,1769701843405,-500.0,0.00016899,2]
[403974819,1769701843414,-151.0,0.00016899,2]
[403974820,1769701843423,-500.0,0.00016899,2]
[403974821,1769701843432,-500.0,0.00016899,2]
[403974822,1769701843444,-500.0,0.00016899,2]
[403974823,1769701843454,-500.0,0.00016899,2]
[403974824,1769701843463,-500.0,0.00016899,2]
[403974825,1769701843473,-500.0,0.00016899,2]
[403974826,1769701843482,-500.0,0.00016899,2]
[403974827,1769701843495,-500.0,0.00016899,2]
[403974828,1769701843504,-500.0,0.00016899,2]
[403974829,1769701843513,-500.0,0.00016899,2]
[403974830,1769701843523,-500.0,0.00016899,2]
[403974831,1769701843533,-500.0,0.00016899,2]
[403974832,1769701843542,-500.0,0.00016899,2]
[403974833,1769701843556,-500.0,0.00016899,2]
[403974834,1769701843565,-322.6107,0.00016899,2]
[403974835,1769701843575,-500.0,0.00016899,2]
[403974836,1769701843584,-721.12765535,0.00016899,2]
[403974837,1769701843594,-500.0,0.00016899,2]
[403974838,1769701843604,-500.0,0.00016899,2]
[403974840,1769701843613,-500.0,0.00016899,2]
[403974841,1769701843623,-500.0,0.00016899,2]
[403974842,1769701843632,-500.0,0.00016899,2]
[403974843,1769701843642,-500.0,0.00016899,2]
[403974844,1769701843651,-500.0,0.00016899,2]
[403974845,1769701843661,-500.0,0.00016899,2]
[403974846,1769701843670,-250.0,0.00016899,2]
[403974847,1769701843680,-500.0,0.00016899,2]
[403974848,1769701843694,-250.0,0.00016899,2]
[403974849,1769701843704,-250.0,0.00016899,2]
[403974850,1769701843714,-500.0,0.00016899,2]
[403974851,1769701843723,-250.0,0.00016899,2]
[403974852,1769701843733,-209.40437684,0.00016899,2]
[403974853,1769701843744,-250.0,0.00016899,2]
[403974854,1769701843754,-500.0,0.00016899,2]
[403974855,1769701843765,-250.0,0.00016899,2]
[403974856,1769701843775,-250.0,0.00016899,2]
[403974857,1769701843786,-500.0,0.00016899,2]
[403974858,1769701843797,-250.0,0.00016899,2]
[403974859,1769701843807,-250.0,0.00016899,2]
[403974860,1769701843817,-250.0,0.00016899,2]